[Event "44th Chess Olympiad Open 2022"]
[Site "Chennai"]
[Date "2022.08.07"]
[Round "9.66"]
[White "Estur, Gavino Aguilar"]
[Black "Rurik Capella"]
[Result "1/2-1/2"]
[ECO "B08"]
[WhiteElo "1598"]
[BlackElo "1952"]
[Annotator "TA"]
[PlyCount "117"]
[EventDate "2022.07.29"]
[EventType "team-tourn"]
[EventCountry "IND"]
[SourceTitle "playchess.com"]
[Source "ChessBase"]
[SourceQuality "1"]
[WhiteTeam "GUM"]
[BlackTeam "Netherlands Antilles"]
[BlackTeamCountry "AHO"]
[TimeControl "40/5400+30:1800+30"]

{[%evp 10,117,31,-29,-32,-145,-114,-137,-113,-149,-148,-227,-227,-234,-228,-287,-270,-327,-319,-329,-336,-356,-347,-343,-325,-310,-244,-291,-287,-311,-271,-335,-336,-359,-372,-373,-377,-449,-459,-500,-506,-548,-532,-556,-553,-606,-609,-572,-510,-548,-537,-535,-532,-508,-487,-756,-628,-753,-748,-741,-745,-739,-737,-729,-658,-606,0,-723,-708,-702,-614,-654,-599,-629,0,-630,-623,-636,-514,-544,-544,-539,-518,-710,0,-588,-506,-635,-587,-683,-679,-702,-699,-680,-680,-639,-627,-610,-611,-590,-547,-540,-382,-359,-371,-535,-280,-244,-241,-513]} 1. e4 {[%emt 0:00:07]} d6 {[%emt 0:00:06]} 2. d4 {[%emt 0:00:36]} g6 {[%emt 0:00:01]} 3. Nc3 {[%emt 0:00:32]} Bg7 {[%emt 0:00:09]} 4. Nf3 {[%emt 0:00:27]} Nf6 {[%emt 0:00:19]} 5. h3 {[%emt 0:00:51]} O-O {[%emt 0:00:09]} 6. Bc4 {[%emt 0:00:42]} (6. Bg5 $14) 6... Nxe4 $1 $11 {[%emt 0:00:42] B08: Pirc Defence: Classical System.} 7. O-O {[%emt 0:01:16]} (7. Nxe4 $15 d5 8. Bd3 dxe4 9. Bxe4) 7... Nxc3 $17 {[%emt 0:01:39]} 8. bxc3 {[%emt 0:00:09] [#]} Nc6 $146 {[%emt 0:00:47]} ({Predecessor:} 8... d5 9. Bb3 c5 10. Ba4 Qa5 11. dxc5 Qxa4 12. Qxd5 Qc6 13. Rd1 Qxd5 14. Rxd5 Be6 {0-1 (50) Sweetland,D (1287)-Ibbitson,A (1423) ICCF email 2018}) 9. Ng5 {[%emt 0:01:02]} h6 {[%emt 0:04:37]} 10. Nxf7 {[%emt 0:01:01]} (10. Nf3 $17) 10... Rxf7 $19 {[%emt 0:00:11]} 11. Bxf7+ {[%emt 0:00:16]} Kxf7 {[%emt 0:00:14]} 12. Qf3+ {[%emt 0:02:55]} Kg8 {[%emt 0:00:38]} 13. g4 {[%emt 0:00:45]} e5 {[%emt 0:01:39]} 14. d5 {[%emt 0:06:04]} Ne7 {[%emt 0:02:43]} 15. Rb1 {[%emt 0:02:27]} g5 {[%emt 0:05:42]} 16. Qe4 {[%emt 0:02:58]} c6 {[%emt 0:02:41]} 17. c4 {[%emt 0:06:03]} c5 {[%emt 0:03:23]} 18. Rb3 {[%emt 0:03:31]} Qe8 {[%emt 0:03:34]} 19. Kh2 {[%emt 0:05:40]} Ng6 {[%emt 0:06:27]} 20. Rf3 {[%emt 0:02:50]} Bd7 {[%emt 0:01:26][%cal Bc8d7,Bd7e8,Be8g6,Bg6h7][%mdl 32]} 21. Rb3 {[%emt 0:01:57]} b6 {[%emt 0:03:42]} 22. f3 {[%emt 0:02:22]} Qf7 {[%emt 0:01:11]} 23. Kg3 {[%emt 0:05:05]} Rf8 {[%emt 0:01:21]} 24. Ra3 {[%emt 0:00:00]} Be8 {[%emt 0:01:02]} 25. Bd2 {[%emt 0:09:04]} Qe7 {[%emt 0:01:20]} 26. Kg2 {[%emt 0:05:58]} Nh4+ {[%emt 0:00:50]} 27. Kg1 {[%emt 0:03:40]} Bg6 {[%emt 0:00:48]} 28. Qe2 {[%emt 0:00:37]} Bh7 {[%emt 0:06:24]} 29. f4 {[%emt 0:01:34]} gxf4 {[%emt 0:02:35]} 30. Rxf4 {[%emt 0:02:26]} Rxf4 {[%emt 0:01:59]} 31. Bxf4 {[%emt 0:00:24]} e4 {[%emt 0:04:35]} 32. Kh2 {[%emt 0:06:26]} (32. Kh1 $142) 32... Bb2 {[%emt 0:01:47]} 33. Rb3 {[%emt 0:01:05]} Be5 {[%emt 0:00:30]} 34. Bxe5 {[%emt 0:06:18]} Qxe5+ {[%emt 0:01:02]} 35. Kh1 {[%emt 0:06:06]} Nf3 {[%emt 0:02:53] [#] ( -> ...Qa1+)} 36. Qf2 {[%emt 0:01:17]} Qa1+ {[%emt 0:11:38]} 37. Kg2 {[%emt 0:00:18]} Qe5 {[%emt 0:00:02]} 38. Kh1 {[%emt 0:01:20] Against Qh2+} Bg6 {[%emt 0:06:59]} 39. Ra3 {[%emt 0:02:07]} Qe7 {[%emt 0:01:23]} 40. Kg2 {[%emt 0:03:41]} Nh4+ {[%emt 0:04:11]} 41. Kg1 {[%emt 0:32:36]} Nf3+ {[%emt 0:30:19]} 42. Kg2 $1 {[%emt 0:00:15]} Kg7 {[%emt 0:08:48]} 43. Kf1 {[%emt 0:00:00]} Ne5 {[%emt 0:00:00]} 44. Qe2 {[%emt 0:00:00]} Qf7+ {[%emt 0:00:00]} 45. Kg2 {[%emt 0:00:00]} Nf3 {[%emt 0:00:00] [#] ...Qf4 is the strong threat.} 46. Qf2 {[%emt 0:00:00]} Qe7 {[%emt 0:00:00]} 47. Kf1 $1 {[%emt 0:00:00]} Nd4 {[%emt 0:00:00]} 48. Re3 {[%emt 0:00:00]} Qe5 {[%emt 0:00:00]} 49. c3 {[%emt 0:03:38]} Nf3 {[%emt 0:00:00]} 50. Ke2 {[%emt 0:00:00]} b5 {[%emt 0:00:00]} 51. cxb5 {[%emt 0:00:00]} Qxd5 {[%emt 0:00:00]} 52. Kf1 {[%emt 0:00:00]} Nd2+ {[%emt 0:00:00]} 53. Kg1 {[%emt 0:00:00]} Nc4 {[%emt 0:00:00]} 54. Re1 {[%emt 0:00:00]} Qd3 {[%emt 0:00:00]} 55. Rf1 {[%emt 0:00:00] Threatening mate with Qf6+.} Qe3 {[%emt 0:00:00]} 56. Qxe3 {[%emt 0:00:00]} Nxe3 {[%emt 0:00:00]} 57. Re1 {[%emt 0:00:00]} (57. Rc1 {is a better defense.} Nc4 58. Kf2) 57... Nc4 {[%emt 0:00:43] And now ...e3 would win.} 58. a4 {[%emt 0:00:30]} Kf6 {[%emt 0:03:10] Threatens to win with ...e3.} 59. Kf2 $2 {[%emt 0:00:22][%mdl 32768] White did not feel at home in the position after the opening.  Weighted Error Value: White=0.34/Black=0.47. An unexpected result.} (59. h4 {keeps fighting.}) 1/2-1/2

[Event "44th Chess Olympiad Open 2022"]
[Site "Chennai"]
[Date "2022.08.07"]
[Round "9.67"]
[White "Mizzi, Jack"]
[Black "Nicholas Arvin"]
[Result "1-0"]
[ECO "E09"]
[WhiteElo "1913"]
[BlackElo "1744"]
[Annotator "TA"]
[PlyCount "61"]
[EventDate "2022.07.29"]
[EventType "team-tourn"]
[EventCountry "IND"]
[SourceTitle "playchess.com"]
[Source "ChessBase"]
[SourceQuality "1"]
[WhiteTeam "Malta"]
[BlackTeam "LCA"]
[WhiteTeamCountry "MLT"]
[TimeControl "40/5400+30:1800+30"]

{[%evp 17,60,23,57,39,54,65,92,86,90,74,67,72,103,92,144,154,128,131,289,283,393,409,410,410,409,405,456,450,538,528,584,597,570,527,593,588,707,704,698,698,758,745,1652,1637,29999]} 1. d4 {[%emt 0:00:05]} d5 {[%emt 0:00:05]} 2. c4 {[%emt 0:00:09]} e6 {[%emt 0:00:16]} 3. Nf3 {[%emt 0:00:44]} Nf6 {[%emt 0:00:19]} 4. g3 {[%emt 0:00:07]} Nbd7 {[%emt 0:01:17]} 5. Bg2 {[%emt 0:00:12]} Be7 {[%emt 0:00:25]} 6. O-O {[%emt 0:00:10]} O-O {[%emt 0:00:04]} 7. Nbd2 {[%emt 0:00:34]} c6 {[%emt 0:02:54]} 8. Qc2 {[%emt 0:00:40]} Re8 {[%emt 0:00:37]} 9. Rd1 {[%emt 0:00:30]} Nf8 {[%emt 0:03:01]} 10. b3 {[%emt 0:01:08] E09: Closed Catalan: Main Line: 7 Qc2 c6 8 Nbd2.} Ng6 {[%emt 0:00:52]} 11. Bb2 {[%emt 0:00:39]} Qc7 {[%emt 0:01:53]} 12. Rac1 {[%emt 0:00:43] White is better.} Bd7 {[%emt 0:00:19]} 13. e4 {[%emt 0:07:07]} dxe4 {[%emt 0:00:08]} 14. Nxe4 {[%emt 0:00:08] [#]} Qb6 $146 {[%emt 0:00:33]} ({Predecessor:} 14... Rad8 15. Nc3 Bc8 16. Qb1 Qa5 17. a4 Qh5 18. Ne4 Ng4 19. h3 Nh6 20. Bc3 e5 {1-0 (32) Peglau,C (1870)-Malinowsky,C (1519) Kiel 2022}) 15. Ne5 {[%emt 0:01:24] [#] Hoping for Nxf6+.} Rad8 {[%emt 0:04:15]} ({Black should try} 15... Nxe4 16. Nxd7 (16. Bxe4 Qc7 $16) 16... Qc7) 16. Ng5 $16 {[%emt 0:01:01]} Rf8 {[%emt 0:01:47]} 17. h4 {[%emt 0:03:17][%cal Bh2h4,Bh4g5][%mdl 32] 0x0.0019eec5c67ddp-1022s more active pieces.} Nh5 $2 {[%emt 0:02:14]} (17... Be8 $16 18. Re1 Qc7) 18. Bf3 $18 {[%emt 0:07:45]} ({Don't take} 18. c5 $6 Qa6 19. Bf3 Nf6 $18) 18... Bxg5 {[%emt 0:07:24]} 19. Nxd7 {[%emt 0:03:44]} ({Much less strong is} 19. hxg5 Nxe5 20. dxe5 (20. Bxh5 Ng6 $16) 20... g6 $18) 19... Rxd7 {[%emt 0:13:40]} 20. hxg5 {[%emt 0:01:55]} Nxg3 {[%emt 0:12:24]} 21. fxg3 {[%emt 0:00:17]} Qa5 {[%emt 0:04:00]} 22. d5 {[%emt 0:08:25]} Qc7 {[%emt 0:02:27]} 23. Kg2 {[%emt 0:03:40]} c5 {[%emt 0:15:02]} 24. Qc3 {[%emt 0:02:19][%csl Gb2][%cal Rc3g7] [#]} e5 {[%emt 0:00:09]} 25. Bh5 {[%emt 0:04:13]} f6 {[%emt 0:05:43]} 26. Rf1 {[%emt 0:04:46]} Rd6 {[%emt 0:07:24]} 27. Bxg6 {[%emt 0:01:42]} hxg6 {[%emt 0:00:08]} 28. Qd3 {[%emt 0:00:55]} Qe7 {[%emt 0:03:51]} 29. Rce1 {[%emt 0:02:18]} Rf7 {[%emt 0:02:53]} 30. Rh1 {[%emt 0:03:21]} Kf8 {[%emt 0:02:05]} 31. Rh8# {[%emt 0:00:08] Black got outplayed after the opening.  Weighted Error Value: White=0.05 (flawless) /Black=0.42} 1-0

[Event "44th Chess Olympiad Open 2022"]
[Site "Chennai"]
[Date "2022.08.07"]
[Round "9.67"]
[White "Cilia Vincenti, David"]
[Black "Mathurin, Nathaniel"]
[Result "1-0"]
[ECO "D04"]
[WhiteElo "1904"]
[BlackElo "1722"]
[Annotator "TA"]
[PlyCount "43"]
[EventDate "2022.07.29"]
[EventType "team-tourn"]
[EventCountry "IND"]
[SourceTitle "playchess.com"]
[Source "ChessBase"]
[SourceQuality "1"]
[WhiteTeam "Malta"]
[BlackTeam "LCA"]
[WhiteTeamCountry "MLT"]
[TimeControl "40/5400+30:1800+30"]

{[%evp 9,43,0,30,27,22,-20,-3,-5,0,-62,-56,-62,-40,-113,0,0,12,10,14,0,33,-37,41,48,77,16,34,39,185,178,172,146,194,91,116,112]} 1. d4 {[%emt 0:00:03]} Nf6 {[%emt 0:00:06]} 2. Nf3 {[%emt 0:00:10]} d5 {[%emt 0:00:11]} 3. e3 {[%emt 0:00:09]} c5 {[%emt 0:00:38]} 4. Nbd2 {[%emt 0:00:11]} Nc6 {[%emt 0:00:35]} 5. Bb5 {[%emt 0:00:12]} Qb6 {[%emt 0:08:19]} 6. c4 {[%emt 0:00:21] D04: Colle System.} e6 {[%emt 0:02:14]} 7. Ne5 {[%emt 0:12:49]} Bd6 {[%emt 0:06:35]} 8. Qa4 {[%emt 0:33:05] [#] The position is equal.} O-O $146 {[%emt 0:10:18]} ({Predecessor:} 8... Bd7 9. Nxd7 Nxd7 10. b4 cxd4 11. c5 Nxc5 12. bxc5 Bxc5 13. Bxc6+ Qxc6 14. Qxc6+ bxc6 {0-1 (53) Sultan Khan,M-Maroczy,G London 1932}) 9. Bxc6 {[%emt 0:05:38]} (9. Nxc6 $11 bxc6 10. Bxc6) 9... bxc6 $15 {[%emt 0:00:10]} 10. Qxc6 {[%emt 0:01:20]} Qb8 {[%emt 0:04:20] [#] Hoping for ...Bb7.} 11. Ndf3 {[%emt 0:07:44]} (11. O-O $15) 11... Bxe5 {[%emt 0:13:30]} ({Black should try} 11... Bb7 $17 12. Qb5 dxc4 13. Nxc4 cxd4 14. exd4 (14. Nxd6 Qxd6 15. exd4 Rfc8 $17) 14... Rc8) 12. dxe5 $11 {[%emt 0:01:49]} Bb7 {[%emt 0:09:18]} 13. Qb5 {[%emt 0:06:04]} Ne4 {[%emt 0:08:08]} 14. O-O {[%emt 0:02:40]} Qc8 {[%emt 0:00:02]} 15. b3 {[%emt 0:03:52]} (15. Nd2 $14) 15... Ba6 {[%emt 0:07:30]} ({Black should play} 15... a5 $15 16. Qa4 Bc6) 16. Qa4 $14 {[%emt 0:01:24]} Rb8 {[%emt 0:13:11]} 17. Ba3 {[%emt 0:01:16]} (17. Nd2 $16) 17... Rd8 {[%emt 0:00:05]} 18. Rfc1 {[%emt 0:03:27] Black must now prevent cxd5.} d4 {[%emt 0:08:23]} (18... dxc4 $14 19. bxc4 h6) 19. exd4 $18 {[%emt 0:00:14]} cxd4 {[%emt 0:00:02]} 20. Bb4 {[%emt 0:06:32] Inhibits Nc3.} f6 {[%emt 0:05:10]} (20... h6 $16) 21. Ba5 {[%emt 0:00:50]} (21. Ne1 $18) 21... Rd7 $16 {[%emt 0:01:42] [#]} 22. Rd1 $1 {[%emt 0:01:27] Weighted Error Value: White=0.34/Black=0.43} 1-0

[Event "44th Chess Olympiad Open 2022"]
[Site "Chennai"]
[Date "2022.08.07"]
[Round "9.68"]
[White "Matola Ernest"]
[Black "Isam, Gaith"]
[Result "1-0"]
[ECO "A90"]
[WhiteElo "1964"]
[BlackElo "1828"]
[Annotator "TA"]
[PlyCount "106"]
[EventDate "2022.07.29"]
[EventType "team-tourn"]
[EventCountry "IND"]
[SourceTitle "playchess.com"]
[Source "ChessBase"]
[SourceQuality "1"]
[WhiteTeam "MAW"]
[BlackTeam "Palestine"]
[BlackTeamCountry "PLE"]
[TimeControl "40/5400+30:1800+30"]

{[%evp 15,106,17,15,0,-7,-15,36,0,43,0,2,-18,-2,-31,-18,-12,60,72,72,75,71,0,-9,0,112,120,120,0,0,-43,-46,-38,-25,-45,-22,-31,301,301,297,288,364,378,379,371,376,360,468,483,480,393,436,397,454,471,433,416,684,674,661,654,1310,1300,1225,1181,29976,973,1000,869,968,967,1297,1246,1079,968,1427,1312,3468,2158,2662,2007,29984,1888,29963,29970,29946,29950,6390,9409,29986,29986,29986,29987,29986]} 1. Nf3 {[%emt 0:00:30]} f5 {[%emt 0:05:36]} 2. d4 {[%emt 0:00:13]} e6 {[%emt 0:01:00]} 3. g3 {[%emt 0:00:22]} Nf6 {[%emt 0:00:13]} 4. Bg2 {[%emt 0:00:12]} d5 {[%emt 0:00:55]} 5. O-O {[%emt 0:00:25]} Bd6 {[%emt 0:00:14]} 6. c4 {[%emt 0:00:27]} c6 {[%emt 0:00:05]} 7. Nc3 {[%emt 0:00:55]} O-O {[%emt 0:02:00]} 8. Bg5 {[%emt 0:01:15]} Nbd7 {[%emt 0:00:21]} 9. c5 {[%emt 0:00:34] A90: Dutch Defence: Miscellaneous and Modern Stonewall (with ...Bd6).} Bc7 {[%emt 0:00:55]} 10. b4 {[%emt 0:00:24]} a6 {[%emt 0:10:48]} ({Better is} 10... Qe8 $11) 11. a4 {[%emt 0:00:44] [#] White is slightly better.} h6 $146 {[%emt 0:00:37]} ({Predecessor:} 11... e5 12. dxe5 Nxe5 13. Nd4 h6 14. Bxf6 Qxf6 15. e3 Nd7 16. Rc1 Kh8 17. Qh5 Ne5 {½-½ (34) Caballero Gomez Casero,E (1773)-Delgado Montanes,J (2078) Salou 2017}) 12. Bd2 {[%emt 0:00:59]} e5 {[%emt 0:02:22]} 13. e3 {[%emt 0:00:59]} e4 {[%emt 0:05:16]} 14. Ne1 {[%emt 0:00:24]} Qe8 {[%emt 0:00:40]} 15. b5 {[%emt 0:00:33]} axb5 {[%emt 0:08:10]} (15... Rf7 $11) 16. axb5 $14 {[%emt 0:00:35]} Rxa1 {[%emt 0:00:05]} 17. Qxa1 {[%emt 0:00:12]} Nh7 {[%emt 0:02:44]} 18. f4 {[%emt 0:04:27]} (18. bxc6 $16 bxc6 19. Qa7) 18... exf3 $1 $11 {[%emt 0:04:59]} 19. Nxf3 {[%emt 0:00:14] Black must now prevent Qa8.} Ng5 {[%emt 0:02:34]} (19... Ndf6 $11 {remains equal.}) 20. Nxg5 $16 {[%emt 0:02:53]} (20. Qa8 {is interesting.} Ne4 21. Nxe4 fxe4 22. bxc6 bxc6 23. Qxc6 exf3 24. Rxf3 Bb8 25. Qxd5+ Kh8 26. Rxf8+ Nxf8 27. Qc6) 20... hxg5 {[%emt 0:00:15] [#]} 21. Qa4 {[%emt 0:01:32] White is more active.} (21. Qa8 $1 $16 Kh8 22. bxc6 bxc6 23. Qxc6) 21... Nf6 $11 {[%emt 0:01:30]} 22. b6 {[%emt 0:02:37]} Bd8 {[%emt 0:03:21]} 23. Qa8 {[%emt 0:01:12]} Be7 {[%emt 0:00:56]} 24. Ra1 {[%emt 0:02:26]} Qd7 {[%emt 0:06:00]} 25. Qb8 {[%emt 0:03:58]} Bxc5 $2 {[%emt 0:02:11][%mdl 8192] Black cannot hold the game after this.} 26. dxc5 $18 {[%emt 0:00:17]} d4 {[%emt 0:00:15]} 27. Nd1 {[%emt 0:00:19]} dxe3 {[%emt 0:05:01]} 28. Bxe3 {[%emt 0:01:12]} Ng4 {[%emt 0:00:24]} 29. Qd6 {[%emt 0:00:44]} ({Inferior is} 29. h3 Nxe3 30. Nxe3 Qd4 $17) 29... Qe8 {[%emt 0:04:15]} 30. Bf2 {[%emt 0:01:24]} f4 {[%emt 0:03:24]} 31. gxf4 {[%emt 0:04:26]} gxf4 {[%emt 0:01:44]} 32. h3 {[%emt 0:01:45]} Rf6 {[%emt 0:11:16]} 33. Qd2 {[%emt 0:01:04]} ({Stronger than} 33. hxg4 Rxd6 34. cxd6 Bxg4 $17) 33... Nxf2 {[%emt 0:05:03]} 34. Nxf2 {[%emt 0:00:51]} ({Not} 34. Kxf2 Qh5 $16) 34... f3 {[%emt 0:05:13] [#]} 35. Bf1 $1 {[%emt 0:00:50]} Qe5 {[%emt 0:02:54]} (35... Be6 $142 36. Qe3 Qf8) 36. Ra8 {[%emt 0:01:02]} Rf8 {[%emt 0:01:50]} 37. Qd6 {[%emt 0:00:44]} Qg5+ {[%emt 0:01:04]} 38. Kh2 {[%emt 0:00:50][%cal Oa8c8] Rxc8! would kill now.} Qe3 {[%emt 0:01:50]} 39. Ng4 {[%emt 0:01:51]} Qe8 {[%emt 0:00:39]} 40. Qe5 {[%emt 0:01:19]} (40. Bc4+ $142 Kh8 41. Ne5 Rf6 42. Qd4 Kh7 43. Qe4+ Bf5 44. Qh4+ Rh6 45. Qxh6+ Kxh6 46. Rxe8) 40... Qf7 {[%emt 0:00:56]} 41. Qd4 {[%emt 0:34:28] Strongly threatening Bc4.} f2 {[%emt 0:09:33]} 42. Qc4 {[%emt 0:00:00]} Be6 {[%emt 0:03:08]} 43. Rxf8+ {[%emt 0:00:00]} Kxf8 {[%emt 0:00:07]} 44. Qd4 {[%emt 0:01:09]} Ke8 {[%emt 0:04:10] Inhibits Qd8+.} 45. Qxf2 {[%emt 0:00:00]} Qh5 {[%emt 0:00:56]} 46. Qe3 {[%emt 0:00:00]} Kd7 {[%emt 0:02:44]} 47. Kg3 {[%emt 0:00:00]} Qd5 {[%emt 0:02:43] Against Qd4} 48. Qd3 {[%emt 0:00:00]} (48. Ne5+ $142 Kd8 49. Bc4 Qxe5+ 50. Qxe5 Bxc4 51. Qxg7 Ke8 52. Kf4 Bf7 53. Ke4) 48... Bf5 {[%emt 0:00:26]} 49. Qxd5+ {[%emt 0:00:00]} cxd5 {[%emt 0:00:08]} 50. Bb5+ {[%emt 0:00:00]} Kd8 {[%emt 0:01:15]} 51. Kf4 {[%emt 0:00:00]} Bd7 52. Bxd7 {[%emt 0:00:00]} Kxd7 {[%emt 0:00:01]} 53. Ke5 {[%emt 0:00:00]} Kc6 {[%emt 0:00:06] Weighted Error Value: White=0.24 (precise) /Black=0.68} 1-0

[Event "44th Chess Olympiad Open 2022"]
[Site "Chennai"]
[Date "2022.08.07"]
[Round "9.69"]
[White "Tchouka, Yakini"]
[Black "Gabriel, Davidson"]
[Result "0-1"]
[ECO "C54"]
[WhiteElo "1934"]
[BlackElo "1915"]
[Annotator "TA"]
[PlyCount "84"]
[EventDate "2022.07.29"]
[EventType "team-tourn"]
[EventCountry "IND"]
[SourceTitle "playchess.com"]
[Source "ChessBase"]
[SourceQuality "1"]
[WhiteTeam "Togo"]
[BlackTeam "Haiti"]
[WhiteTeamCountry "TOG"]
[BlackTeamCountry "HAI"]
[TimeControl "40/5400+30:1800+30"]

{[%evp 10,84,34,17,48,33,37,33,39,19,61,43,48,50,58,45,60,24,9,9,32,10,16,10,52,0,0,-41,-37,-53,-6,-8,-12,-6,0,-30,-36,-32,0,-46,-26,-25,-22,-74,-72,-74,-29,-41,-31,-72,-65,-68,-68,-78,-24,-30,-36,-43,-64,-118,-127,-178,-173,-694,-675,-967,-943,-1400,-1331,-1110,-593,-987,-990,-985,-921,-956,-823]} 1. e4 {[%emt 0:00:05]} e5 {[%emt 0:00:28]} 2. Nf3 {[%emt 0:00:09]} Nc6 {[%emt 0:00:13]} 3. Bc4 {[%emt 0:00:19]} Bc5 {[%emt 0:00:18]} 4. d3 {[%emt 0:00:22]} h6 {[%emt 0:02:38]} 5. c3 {[%emt 0:02:04]} Nf6 {[%emt 0:00:38]} 6. O-O {[%emt 0:02:59]} Qe7 {[%emt 0:03:35] C54: Giuoco Piano: 4 c3 Nf6, main lines with 5 d4 and 5 d3.} ({Don't play} 6... d5 7. exd5 Ne7 8. Nxe5 $16) 7. b4 {[%emt 0:05:28]} Bb6 {[%emt 0:00:19]} 8. a4 {[%emt 0:00:12] [#] And now a5 would win.} a6 $1 {[%emt 0:00:55] White is slightly better.} 9. Be3 {[%emt 0:02:50]} Ba7 {[%emt 0:10:09]} 10. Nbd2 {[%emt 0:07:02]} d6 {[%emt 0:00:45] [#]} 11. Bxa7 $146 {[%emt 0:14:23]} ({Predecessor:} 11. Rb1 O-O 12. b5 Na5 13. Bxa7 Rxa7 14. Ne1 Nxc4 15. Nxc4 axb5 16. axb5 b6 17. Nc2 {1-0 (66) Bosnjak,D (2368)-Abdic,A (2036) Neum 2000}) 11... Nxa7 {[%emt 0:00:24]} 12. d4 {[%emt 0:02:23]} O-O {[%emt 0:00:38]} 13. dxe5 {[%emt 0:05:20]} dxe5 {[%emt 0:00:12]} 14. Qe2 {[%emt 0:06:43]} Bg4 {[%emt 0:04:25]} 15. h3 {[%emt 0:02:01]} Bh5 {[%emt 0:00:33]} 16. Rfd1 {[%emt 0:02:11]} a5 {[%emt 0:01:24]} 17. b5 {[%emt 0:02:12]} (17. bxa5 $14 Nc6 18. a6 bxa6 19. Bxa6) 17... Nc8 $11 {[%emt 0:00:16]} 18. Nf1 {[%emt 0:08:34]} Nb6 {[%emt 0:04:44]} 19. Bb3 {[%emt 0:00:42]} Bxf3 {[%emt 0:01:55]} (19... Rad8 $15) 20. Qxf3 {[%emt 0:00:44]} g6 {[%emt 0:00:16]} 21. Ne3 {[%emt 0:02:44]} Kg7 {[%emt 0:00:57]} 22. Nd5 {[%emt 0:03:58]} Nfxd5 {[%emt 0:00:25]} 23. exd5 {[%emt 0:00:04]} Rad8 {[%emt 0:00:33]} 24. Qe3 {[%emt 0:02:37]} (24. c4 $11 {feels stronger.}) 24... Qd6 {[%emt 0:00:47]} 25. c4 {[%emt 0:01:54]} Nd7 {[%emt 0:00:10] Inhibits c5.} 26. h4 {[%emt 0:02:03]} (26. Ra2 $11 {remains equal.}) 26... f5 {[%emt 0:01:03][%cal Bf7f5,Bf5f4][%mdl 32]} 27. Re1 {[%emt 0:00:43][%cal Oh4h5,Bd1e1,Be1e2,Be2e4][%mdl 32]} Nc5 {[%emt 0:00:19]} 28. Bc2 {[%emt 0:00:45]} Rde8 {[%emt 0:00:24]} 29. g3 {[%emt 0:02:10]} f4 {[%emt 0:01:01]} (29... b6 {keeps more tension.} 30. Re2 e4 31. Rae1 f4) 30. Qc3 {[%emt 0:04:36]} b6 {[%emt 0:00:39]} 31. Re2 {[%emt 0:01:46]} h5 {[%emt 0:04:04]} ({Black should try} 31... Rf6 $17) 32. Rae1 {[%emt 0:01:05][%cal Re2e5]} Nd7 {[%emt 0:00:21]} 33. Re4 {[%emt 0:03:59]} fxg3 {[%emt 0:00:36]} 34. Qxg3 {[%emt 0:00:53] [#]} (34. fxg3 $15 Rf6 35. R4e3) 34... Rf6 $1 $17 {[%emt 0:00:53]} 35. Qg5 {[%emt 0:04:02]} (35. R4e3 $17) 35... Ref8 $19 {[%emt 0:00:21][%cal Be8f8,Bf8f4,Bf4g4,Bg4c4,Bc4h4][%mdl 32]} ({Weaker is} 35... Qc5 36. R1e2 $17) 36. f4 {[%emt 0:02:04]} (36. R1e2) 36... Rxf4 {[%emt 0:00:21] White must now prevent ...Qc5+. Black is clearly winning.} 37. Rxf4 {[%emt 0:02:05]} Rxf4 {[%emt 0:02:09]} 38. Kh1 {[%emt 0:00:51]} Rg4 {[%emt 0:00:33]} 39. Qd8 {[%emt 0:00:44]} Rxc4 {[%emt 0:01:55]} 40. Be4 {[%emt 0:02:03]} Nc5 {[%emt 0:02:34]} 41. Qxd6 {[%emt 0:32:12]} cxd6 42. Bb1 {[%emt 0:02:09]} Rxh4+ {[%emt 0:32:55] Weighted Error Value: White=0.61/Black=0.19 (very precise)} 0-1